[Event "Charlotte Fall GM-B 2023"]
[Site "Charlotte"]
[Date "2023.11.21"]
[Round "9.4"]
[White "Stremavicius, Titas"]
[Black "Griffith, Kyron"]
[Result "1-0"]
[ECO "A13"]
[WhiteElo "2563"]
[BlackElo "2358"]
[Annotator "RC"]
[PlyCount "83"]
[EventDate "2023.11.17"]
[EventType "tourn"]
[EventCountry "USA"]
[SourceTitle "playchess.com"]
[Source "ChessBase"]
[SourceQuality "1"]
[TimeControl "5400+30"]

1. c4 {[%emt 0:00:02]} Nf6 {[%emt 0:01:44]} 2. Nc3 {[%emt 0:00:22]} c5 {[%emt 0:00:25]} 3. Nf3 {[%emt 0:00:23]} e6 {[%emt 0:00:11]} 4. e3 {[%emt 0:02:48]} d5 {[%emt 0:00:09]} 5. cxd5 {[%emt 0:00:07]} Nxd5 {[%emt 0:03:25]} 6. Nxd5 {[%emt 0:00:24]} Qxd5 {[%emt 0:00:48]} 7. b3 {[%emt 0:02:36]} Be7 {[%emt 0:01:13]} 8. Bb2 {[%emt 0:00:10]} O-O {[%emt 0:00:40]} 9. Qb1 {[%emt 0:22:57]} Rd8 {[%emt 0:16:23]} 10. Bc4 {[%emt 0:01:24]} Qd6 {[%emt 0:02:53]} 11. O-O {[%emt 0:04:33]} Nc6 {[%emt 0:05:43]} 12. Rd1 {[%emt 0:00:47]} b6 {[%emt 0:05:07]} 13. Qe4 {[%emt 0:25:00]} Bb7 {[%emt 0:04:10]} 14. Qg4 {[%emt 0:00:08]} e5 {[%emt 0:03:32]} 15. h4 {[%emt 0:11:16]} Bf6 {[%emt 0:22:51]} 16. Ng5 {[%emt 0:00:45]} Bxg5 {[%emt 0:00:21]} 17. Qxg5 {[%emt 0:01:58]} Qg6 {[%emt 0:00:59]} 18. Bc3 {[%emt 0:04:21]} Rd6 {[%emt 0:01:41]} 19. Rf1 {[%emt 0:00:59]} h6 {[%emt 0:03:03]} 20. Qxg6 {[%emt 0:00:13]} Rxg6 {[%emt 0:00:02]} 21. f3 {[%emt 0:00:31]} Re8 {[%emt 0:02:36]} 22. Kh2 {[%emt 0:02:35]} h5 {[%emt 0:04:30]} 23. g4 {[%emt 0:01:29]} Bc8 {[%emt 0:04:36]} 24. gxh5 {[%emt 0:03:44]} Rh6 {[%emt 0:00:34]} 25. f4 {[%emt 0:00:35]} Rxh5 {[%emt 0:01:48]} 26. Kg3 {[%emt 0:00:03]} exf4+ {[%emt 0:00:52]} 27. Rxf4 {[%emt 0:02:32]} Be6 {[%emt 0:00:03]} 28. Bb5 {[%emt 0:01:03]} Bd7 {[%emt 0:00:29]} 29. Rg1 {[%emt 0:00:41]} Ne5 {[%emt 0:01:14]} 30. Be2 {[%emt 0:01:20]} Rh6 {[%emt 0:00:19]} 31. h5 {[%emt 0:00:43]} Re7 {[%emt 0:02:44]} 32. Kf2 {[%emt 0:00:42]} f5 {[%emt 0:01:17]} 33. Rg5 {[%emt 0:01:52]} Ng4+ {[%emt 0:01:00]} 34. Bxg4 {[%emt 0:01:58]} fxg4 {[%emt 0:00:04]} 35. b4 {[%emt 0:00:14]} Rc6 {[%emt 0:03:32]} 36. Kg3 {[%emt 0:00:16]} Bc8 {[%emt 0:05:24]} 37. Rd5 {[%emt 0:02:35]} Re8 {[%emt 0:00:33]} 38. bxc5 {[%emt 0:00:54]} bxc5 {[%emt 0:01:06]} 39. Rc4 {[%emt 0:00:20]} Rf8 {[%emt 0:01:13]} 40. Rdxc5 {[%emt 0:01:04]} Rf3+ {[%emt 0:00:11]} 41. Kh4 {[%emt 0:00:53]} g3 {[%emt 0:00:48]} 42. Rxc6 {[%emt 0:00:19]} 1-0